bitfinex/quotes_SOLUSD_20220119
["timestamp","ask_amount","ask_price","bid_price","bid_amount"]
[1642614642569,60.07487124,137.28,137.2,21.6607]
[1642614642970,49.14337124,137.28,137.2,21.6607]
[1642614645171,0.25,137.27,137.2,10.48]
[1642614645771,1.82712602,137.26,137.15,39.3522]
[1642614645972,40.65824559,137.25,137.17,10.48]
[1642614646183,1.82712602,137.28,137.17,10.9331]
[1642614646375,10.48,137.37,137.18,13.395]
[1642614646571,1.82712602,137.32,137.18,13.395]
[1642614646772,0.25,137.31,137.18,13.395]
[1642614647173,40.48793861,137.31,137.19,0.25]
[1642614647374,40.48793861,137.31,137.2,13.394]
[1642614647574,10.9302,137.3,137.2,21.4107]
[1642614647874,0.25,137.29,137.21,0.25]
[1642614648078,0.25,137.29,137.2,21.4107]
[1642614648275,2.07712602,137.29,137.2,10.48]
[1642614648475,50.73431424,137.28,137.16,19.394]
[1642614648675,10.9337,137.25,137.16,30.3274]
[1642614648873,45.53287112,137.24,137.16,24.3274]
[1642614649475,45.53287112,137.24,137.17,0.25]
[1642614649673,45.53287112,137.24,137.17,11.1831]
[1642614649874,45.53287112,137.24,137.17,10.9331]
[1642614651182,45.53287112,137.24,137.18,0.25]
[1642614651380,45.53287112,137.24,137.18,21.6622]
[1642614651577,10.9325,137.27,137.18,21.6622]
[1642614651776,0.25,137.26,137.18,21.6622]
[1642614652676,43.14506602,137.31,137.19,72.97]
[1642614652876,10.8433,137.41,137.23,72.97]
[1642614653078,10.8433,137.41,137.24,13.392]
[1642614653278,12.30712602,137.4,137.25,10.73]
[1642614653579,12.30712602,137.4,137.26,10.48]
[1642614653780,10.926,137.35,137.27,0.25]
[1642614653978,40.3795819,137.34,137.28,10.48]
[1642614654180,40.6295819,137.34,137.28,10.48]
[1642614654679,40.6295819,137.34,137.29,0.25]
[1642614654877,40.6295819,137.34,137.26,10.48]
[1642614655079,51.5559819,137.34,137.26,10.48]
[1642614655276,51.5559819,137.34,137.27,0.25]
[1642614655480,40.6295819,137.34,137.27,0.25]
[1642614655680,40.3795819,137.34,137.28,10.48]
[1642614656882,40.3795819,137.34,137.25,453.38722995]
[1642614657079,2.07712602,137.33,137.25,463.86722995]
[1642614657279,10.9278,137.32,137.25,453.38722995]
[1642614657478,47.25884818,137.31,137.25,453.38722995]
[1642614657679,47.50884818,137.31,137.25,453.38722995]
[1642614658282,58.43774818,137.31,137.25,453.38722995]
[1642614658986,58.18774818,137.31,137.25,453.38722995]
[1642614659185,0.25,137.3,137.25,453.38722995]
[1642614660291,10.9275,137.33,137.25,453.38722995]
[1642614660486,10.9275,137.33,137.26,0.25]
[1642614660685,0.25,137.32,137.26,0.25]
[1642614661089,36.4218,137.37,137.26,0.25]
[1642614661391,41.79539226,137.36,137.26,0.25]
[1642614661590,41.79539226,137.36,137.25,463.86722995]
[1642614661886,41.79539226,137.36,137.26,0.25]
[1642614662486,10.9263,137.34,137.26,11.1758]
[1642614662687,43.52565161,137.33,137.26,0.25]
[1642614662888,43.52565161,137.33,137.25,463.86722995]
[1642614663087,43.52565161,137.33,137.26,0.25]
[1642614663288,43.52565161,137.33,137.25,463.86722995]
[1642614663488,43.52565161,137.33,137.25,453.38722995]
[1642614663691,54.20285161,137.33,137.26,0.25]
[1642614663890,43.27565161,137.33,137.26,0.25]
[1642614664490,43.27565161,137.33,137.25,453.38722995]
[1642614664690,56.02987763,137.33,137.25,453.38722995]
[1642614664891,43.27565161,137.33,137.25,453.38722995]
[1642614665096,0.25,137.32,137.25,453.38722995]
[1642614665692,2.07712602,137.32,137.25,453.38722995]
[1642614666322,0.25,137.32,137.25,453.38722995]
[1642614666521,11.1779,137.32,137.25,453.38722995]
[1642614666726,16.44168832,137.47,137.31,0.32247959]
[1642614666921,10.2760552,137.46,137.32,10.48]
[1642614667122,8.22993689,137.5,137.39,2.99]
[1642614667322,8.22993689,137.5,137.4,10.48]
[1642614667522,19.14573689,137.5,137.4,10.48]
[1642614667723,118.43385565,137.49,137.4,10.48]
[1642614668524,10.9184,137.48,137.4,10.48]
[1642614669524,10.9184,137.48,137.39,2.99]
[1642614670825,10.9184,137.48,137.39,13.47]
[1642614672029,72.97,137.47,137.39,2.99]
[1642614672230,10.9215,137.45,137.39,2.99]
[1642614672529,46.30448315,137.46,137.36,422.10927813]
[1642614672727,46.30448315,137.46,137.37,10.48]
[1642614673430,57.22378315,137.46,137.37,10.48]
[1642614673727,57.22378315,137.46,137.28,13.39]
[1642614673928,36.4216,137.41,137.28,10.48]
[1642614674129,44.5005863,137.4,137.28,10.48]
[1642614674331,44.7505863,137.4,137.28,10.48]
[1642614675229,55.6770863,137.4,137.24,10.927]
[1642614675429,55.6770863,137.4,137.24,25.667]
[1642614676034,55.6770863,137.4,137.24,8.74]
[1642614677234,55.6770863,137.4,137.25,0.25]
[1642614677433,55.6770863,137.4,137.26,8.74]
[1642614677632,55.6770863,137.4,137.26,19.6659]
[1642614677838,128.6470863,137.4,137.27,0.25]
[1642614678033,128.6470863,137.4,137.28,8.74]
[1642614679734,128.6470863,137.4,137.29,0.25]
[1642614679935,128.3970863,137.4,137.29,0.25]
[1642614681239,0.25,137.39,137.29,0.25]
[1642614681640,0.25,137.39,137.3,8.74]
[1642614682841,44.5005863,137.4,137.3,8.74]
[1642614683439,55.4241863,137.4,137.3,19.6629]
[1642614683840,55.4241863,137.4,137.3,8.74]
[1642614684243,0.25,137.39,137.3,8.74]
[1642614684447,10.9243,137.39,137.3,8.74]
[1642614684640,44.5005863,137.4,137.3,8.74]
[1642614685048,0.25,137.39,137.3,8.74]
[1642614685441,0.25,137.39,137.3,19.6627]
[1642614686048,24.1283,137.43,137.31,0.25]
[1642614686244,0.25,137.42,137.32,8.74]
[1642614686443,0.25,137.42,137.32,11.651]
[1642614686646,111.9,137.47,137.33,0.25]
[1642614686647,10.9198,137.45,137.33,0.25]
[1642614686844,111.9,137.47,137.34,11.651]
[1642614687046,35.18617595,137.46,137.34,19.429]
[1642614687244,35.18617595,137.46,137.35,0.25]
[1642614687446,35.18617595,137.46,137.36,8.74]
[1642614688145,35.18617595,137.46,137.36,458.78290012]
[1642614688846,0.25,137.45,137.37,0.25]
[1642614689045,0.25,137.45,137.38,8.74]
[1642614689446,11.1691,137.45,137.38,8.74]
[1642614690548,0.25,137.45,137.38,8.74]
[1642614693255,35.18617595,137.46,137.38,8.74]
[1642614693656,0.25,137.45,137.38,8.74]
[1642614694354,35.18617595,137.46,137.38,8.74]
[1642614694755,0.25,137.45,137.38,8.74]
[1642614695155,35.18617595,137.46,137.38,8.74]
[1642614695355,0.25,137.45,137.38,8.74]
[1642614697258,11.1694,137.45,137.38,8.74]
[1642614698662,11.1694,137.45,137.36,450.04290012]
[1642614699060,10.9194,137.45,137.36,450.04290012]
[1642614699263,35.18617595,137.46,137.36,458.78290012]
[1642614699462,10.918,137.47,137.36,469.70090012]
[1642614699661,79.11612851,137.49,137.36,469.70090012]
[1642614699662,6.14612851,137.49,137.36,469.70090012]
[1642614699863,6.14612851,137.52,137.37,1.50554764]
[1642614700092,6.14612851,137.52,137.38,8.74]
[1642614700392,6.14612851,137.54,137.39,0.25]
[1642614700591,45.6487809,137.53,137.4,8.74]
[1642614700889,45.6487809,137.53,137.41,0.25]
[1642614701091,45.6487809,137.53,137.42,8.74]
[1642614701290,0.25,137.52,137.42,8.74]
[1642614701489,0.25,137.52,137.43,10.9125]
[1642614701692,0.25,137.52,137.43,11.1625]
[1642614701890,56.5617809,137.53,137.44,439.08384423]
[1642614702490,17.05782851,137.55,137.45,0.25]
[1642614702693,118.04612851,137.56,137.45,8.99]
[1642614703493,47.88890128,137.55,137.45,8.74]
[1642614703893,47.88890128,137.55,137.46,10.9101]
[1642614704097,47.88890128,137.55,137.46,19.6501]
[1642614704495,47.88890128,137.55,137.46,8.74]
[1642614704694,0.25,137.54,137.46,8.74]
[1642614705493,10.912,137.54,137.46,8.74]
[1642614705694,47.88890128,137.55,137.46,8.74]
[1642614706998,47.88890128,137.55,137.46,19.65]
[1642614707196,47.88890128,137.55,137.47,0.25]
[1642614707402,47.88890128,137.55,137.46,8.74]
[1642614707609,0.25,137.54,137.46,8.74]
[1642614708597,11.162,137.54,137.46,8.74]
[1642614710104,11.162,137.54,137.44,439.08384423]
[1642614710904,10.43830855,137.63,137.46,69.0]
[1642614711111,16.36583774,137.76,137.74,56.95610812]
[1642614711339,34.31838494,137.88,137.74,56.95610812]
[1642614711340,21.21779435,137.98,137.75,8.99]
[1642614711506,19.4005,137.94,137.75,8.74]
[1642614711708,19.4005,137.94,137.74,56.95610812]
[1642614711709,8.74,137.91,137.74,56.95610812]
[1642614711905,45.65912776,137.9,137.74,56.95610812]
[1642614712107,45.65912776,137.9,137.75,8.74]
[1642614712306,47.48625378,137.9,137.76,0.25]
[1642614712507,45.15912776,137.9,137.77,8.74]
[1642614712708,45.15912776,137.9,137.78,0.25]
[1642614712912,45.15912776,137.9,137.79,8.74]
[1642614713107,46.98625378,137.9,137.8,8.74]
[1642614713308,45.15912776,137.9,137.8,8.74]
[1642614713508,46.98625378,137.9,137.76,2.902]
[1642614713710,46.98625378,137.9,137.77,8.74]
[1642614713912,57.87305378,137.9,137.76,8.74]
[1642614716909,66.44721943,137.9,137.76,8.74]
[1642614717110,10.8923,137.86,137.76,8.74]
[1642614717310,35.50061383,137.85,137.75,5.11]
[1642614717513,37.32773985,137.85,137.75,5.11]
[1642614718112,35.50061383,137.85,137.77,5.11]
[1642614718714,10.8921,137.83,137.77,5.11]
[1642614719014,35.50053328,137.82,137.77,5.11]
[1642614719212,35.75053328,137.82,137.77,5.11]
[1642614720118,35.75053328,137.82,137.71,8.74]
[1642614720314,35.75053328,137.82,137.7,432.55705317]
[1642614720315,69.0,137.8,137.7,124.0916677]
[1642614720519,74.514,137.8,137.67,2.902]
[1642614720815,0.25,137.79,137.67,2.902]
[1642614721013,0.25,137.79,137.65,8.74]
[1642614721518,10.8993,137.77,137.65,8.74]
[1642614721718,0.25,137.76,137.65,8.74]
[1642614722718,10.8993,137.73,137.62,8.74]
[1642614722916,17.5263,137.73,137.62,8.74]
[1642614723127,0.25,137.72,137.62,8.74]
[1642614724317,0.25,137.73,137.62,8.74]
[1642614725322,10.9005,137.7,137.61,547.36850213]
[1642614725520,17.9845,137.7,137.57,2.904]
[1642614725724,0.25,137.69,137.57,2.904]
[1642614725919,141.97,137.72,137.57,2.904]
[1642614726121,150.71,137.72,137.57,2.904]
[1642614726548,161.6153,137.72,137.57,2.904]
[1642614727450,0.25,137.71,137.51,8.74]
[1642614727749,8.74,137.7,137.51,56.63453402]
[1642614727950,10.9069,137.65,137.51,67.54053402]
[1642614728353,10.9069,137.65,137.52,2.907]
[1642614728551,10.9069,137.65,137.53,8.74]
[1642614729451,36.3516,137.67,137.53,8.74]
[1642614729452,10.9063,137.62,137.53,8.74]
[1642614729858,0.25,137.61,137.53,8.74]
[1642614730255,10.9063,137.62,137.53,8.74]
[1642614730451,83.8752,137.64,137.53,8.74]
[1642614730651,83.8752,137.64,137.54,40.52314031]
[1642614730862,83.8752,137.64,137.54,0.25]
[1642614731255,83.8752,137.64,137.51,8.74]
[1642614731852,10.9082,137.6,137.51,8.74]
[1642614732254,0.25,137.59,137.51,8.74]
[1642614737159,10.9068,137.62,137.52,38.0508965]
[1642614737561,8.74,137.65,137.52,38.0508965]
[1642614737761,8.74,137.65,137.53,0.25]
[1642614737960,8.74,137.65,137.52,38.0508965]
[1642614738859,10.9049,137.64,137.53,0.25]
[1642614739060,10.9049,137.64,137.51,19.6455]
[1642614739260,10.9049,137.64,137.52,0.25]
[1642614739460,10.9049,137.64,137.51,8.74]
[1642614740064,10.9049,137.64,137.51,51.85140099]
[1642614740260,0.25,137.63,137.51,51.85140099]
[1642614740463,10.9068,137.61,137.51,51.85140099]
[1642614740862,0.25,137.6,137.51,8.74]
[1642614741267,0.18126756,137.6,137.51,8.74]
[1642614741670,11.08856756,137.6,137.51,8.74]
[1642614741870,10.9073,137.6,137.51,8.74]
[1642614743267,0.25,137.59,137.51,8.74]
[1642614743467,11.1587,137.59,137.51,8.74]
[1642614743667,0.25,137.58,137.51,8.74]
[1642614744871,7.51,137.61,137.51,8.74]
[1642614745272,10.9089,137.58,137.51,8.74]
[1642614745770,0.25,137.57,137.51,8.74]
[1642614746774,0.25,137.59,137.51,8.74]
[1642614747374,0.25,137.59,137.47,385.50221585]
[1642614747577,0.25,137.59,137.48,0.25]
[1642614747578,10.9095,137.57,137.48,0.25]
[1642614747776,0.25,137.56,137.48,0.25]
[1642614747976,0.25,137.56,137.48,48.70998796]
[1642614748177,0.25,137.56,137.48,0.25]
[1642614748878,0.25,137.56,137.49,1.63270594]
[1642614749076,0.25,137.59,137.49,1.63270594]
[1642614749276,11.1584,137.59,137.49,12.54030594]
[1642614749479,83.2447,137.64,137.51,48.12809659]
[1642614749676,46.8899,137.64,137.52,10.72]
[1642614749877,10.47,137.69,137.53,1.63270594]
[1642614750077,10.47,137.69,137.53,12.10270594]
[1642614750276,9.456884,137.69,137.54,47.28065295]
[1642614750477,10.9035,137.65,137.55,10.903]
[1642614750677,10.9035,137.65,137.55,21.373]
[1642614750879,0.25,137.64,137.55,21.373]
[1642614751779,109.3114,137.69,137.55,21.373]
[1642614751980,10.9018,137.67,137.55,21.373]
[1642614752178,0.25,137.66,137.56,540.77659804]
[1642614752381,0.25,137.66,137.57,59.54564424]
[1642614752778,205.8756,137.71,137.57,59.54564424]
[1642614752984,10.9003,137.69,137.58,10.72]
[1642614753580,10.9003,137.69,137.59,10.8997]
[1642614754582,10.8986,137.71,137.59,21.3697]
[1642614755083,2.04303843,137.74,137.59,21.3697]
[1642614755284,12.51303843,137.75,137.6,41.05913019]
[1642614755584,10.47,137.75,137.63,10.8967]
[1642614756189,83.44,137.75,137.63,10.8967]
[1642614756385,83.44,137.75,137.61,10.47]
[1642614756589,10.897,137.73,137.61,21.3678]
[1642614756785,0.25,137.72,137.61,10.47]
[1642614757787,36.5832,137.72,137.62,46.97054868]
[1642614757989,0.25,137.73,137.62,46.97054868]
[1642614758188,0.25,137.73,137.62,57.44054868]
[1642614758789,49.95283843,137.76,137.62,57.44054868]
[1642614758989,122.92283843,137.76,137.62,57.44054868]
[1642614759589,10.897,137.73,137.62,68.33774868]
[1642614759991,10.897,137.73,137.62,21.3672]
[1642614760420,0.25,137.72,137.62,21.3672]
[1642614760618,0.25,137.74,137.62,21.3672]
[1642614760918,10.898,137.71,137.62,10.47]
[1642614761318,0.25,137.7,137.62,10.47]
[1642614761518,85.48303843,137.75,137.62,10.47]
[1642614761917,10.8992,137.7,137.62,10.47]
[1642614763217,10.9001,137.68,137.62,10.47]
[1642614763618,0.25,137.67,137.62,10.47]
[1642614764818,25.17123843,137.74,137.62,10.47]
[1642614765019,23.1282,137.74,137.62,10.47]
[1642614765821,25.17123843,137.74,137.62,10.47]
[1642614766018,10.8974,137.72,137.62,10.47]
[1642614766418,10.8974,137.72,137.6,10.8984]
[1642614767119,10.8995,137.69,137.58,21.3701]
[1642614767322,0.25,137.68,137.58,21.3701]
[1642614768420,10.9007,137.68,137.58,10.47]
[1642614768819,0.25,137.67,137.58,10.47]
[1642614769019,119.7769,137.71,137.58,10.47]
[1642614769221,119.7769,137.71,137.58,46.9966892]
[1642614769621,10.9016,137.67,137.58,57.8971892]
[1642614770420,0.25,137.66,137.59,0.25]
[1642614771020,119.7769,137.71,137.59,0.25]
[1642614771423,10.9001,137.68,137.58,21.3705]
[1642614772020,10.9001,137.68,137.59,11.1498]
[1642614772225,36.3369,137.71,137.59,11.1498]
[1642614772422,36.3369,137.71,137.59,53.3490803]
[1642614772622,0.25,137.7,137.59,53.3490803]
[1642614773024,36.3369,137.71,137.59,53.3490803]
[1642614773222,23.2546,137.72,137.59,126.3190803]
[1642614773422,46.7994,137.73,137.59,53.3490803]
[1642614773423,119.7694,137.73,137.59,53.3490803]
[1642614774226,119.7694,137.73,137.59,11.1498]
[1642614774527,10.8986,137.7,137.56,551.24659804]
[1642614774726,0.25,137.69,137.56,551.24659804]
[1642614775132,73.22,137.69,137.56,10.47]
[1642614775335,10.9029,137.66,137.56,10.47]
[1642614775531,72.97,137.65,137.52,12.10270594]
[1642614775732,73.22,137.65,137.52,12.10270594]
[1642614775930,73.22,137.65,137.52,10.47]
[1642614776341,0.25,137.65,137.52,10.47]
[1642614776532,10.9065,137.63,137.53,41.8774301]
[1642614776733,0.25,137.62,137.53,52.7817301]
[1642614777734,10.903,137.65,137.53,52.7817301]
[1642614777935,2.04303843,137.68,137.57,10.9009]
[1642614778133,36.3397,137.69,137.58,45.13821995]
[1642614778733,36.3397,137.69,137.59,0.25]
[1642614779333,10.9014,137.67,137.59,0.25]
[1642614779533,10.9014,137.67,137.57,10.47]
[1642614779735,10.9014,137.67,137.58,0.25]
[1642614780535,11.152,137.66,137.58,0.25]
[1642614781137,11.152,137.66,137.57,10.47]
[1642614781537,11.152,137.66,137.58,0.25]
[1642614783838,10.9004,137.68,137.59,467.29109665]
[1642614784039,2.04303843,137.7,137.6,44.03598283]
[1642614784242,2.04303843,137.72,137.6,60.62598283]
[1642614784542,2.04303843,137.74,137.61,6.0]
[1642614784742,2.04303843,137.74,137.65,10.8937]
[1642614784942,2.04303843,137.76,137.66,37.83376874]
[1642614785144,2.04303843,137.76,137.66,51.45776874]
[1642614785341,2.04303843,137.77,137.66,51.45776874]
[1642614785541,2.04303843,137.78,137.66,51.45776874]
[1642614785745,2.04303843,137.8,137.67,78.97]
[1642614785941,2.04303843,137.8,137.68,10.47]
[1642614786142,2.04303843,137.8,137.69,54.12240286]
[1642614786376,0.25,137.79,137.69,54.12240286]
[1642614786543,2.04303843,137.8,137.7,10.72]
[1642614786742,2.04303843,137.81,137.7,10.72]
[1642614786941,2.04303843,137.82,137.7,10.72]
[1642614787143,2.04303843,137.82,137.72,43.78019509]
[1642614787341,2.04303843,137.82,137.73,10.47]
[1642614787543,2.04303843,137.82,137.73,10.72]
[1642614787844,2.04303843,137.83,137.73,10.72]
[1642614788241,2.04303843,137.84,137.73,10.72]
[1642614788443,2.04303843,137.85,137.75,10.8859]
[1642614788642,0.25,137.83,137.74,10.47]
[1642614788842,0.25,137.83,137.71,455.39036329]
[1642614789043,0.25,137.83,137.72,10.47]
[1642614789243,0.25,137.83,137.72,10.72]
[1642614789441,0.25,137.83,137.72,10.47]
[1642614789643,0.25,137.83,137.73,36.92760514]
[1642614789841,0.25,137.83,137.73,47.39760514]
[1642614790042,0.25,137.84,137.73,47.39760514]
[1642614790241,10.8883,137.83,137.73,10.47]
[1642614790645,0.25,137.82,137.73,10.47]
[1642614791245,10.8905,137.8,137.71,444.92036329]
[1642614791644,0.25,137.79,137.71,444.92036329]
[1642614792243,0.25,137.79,137.71,479.9875317]
[1642614792443,10.8944,137.77,137.71,479.9875317]
[1642614793244,0.25,137.79,137.71,479.9875317]
[1642614793446,0.25,137.81,137.71,479.9875317]
[1642614793645,10.892,137.78,137.71,444.92036329]
[1642614794046,0.25,137.77,137.71,444.92036329]
[1642614794645,0.25,137.77,137.69,36.58051826]
[1642614794848,10.8953,137.76,137.69,36.58051826]
[1642614795251,0.25,137.75,137.69,36.58051826]
[1642614795650,2.04303843,137.8,137.69,36.58051826]
[1642614795848,49.72673843,137.81,137.69,36.58051826]
[1642614796049,10.891,137.8,137.69,57.94201826]
[1642614796450,47.6837,137.81,137.69,57.94201826]
[1642614796655,47.6837,137.81,137.7,0.25]
[1642614798050,58.5734,137.81,137.7,10.8908]
[1642614798253,0.25,137.8,137.69,47.05051826]
[1642614798855,0.25,137.8,137.7,0.25]
[1642614799054,10.8924,137.78,137.7,11.1411]
[1642614799252,0.25,137.77,137.7,11.1411]
[1642614800655,0.25,137.77,137.7,0.25]
[1642614801991,11.1427,137.77,137.69,47.05051826]
[1642614802187,11.1427,137.77,137.69,10.47]
[1642614802987,17.8817,137.77,137.68,485.85038489]
[1642614803887,17.8817,137.77,137.69,39.95413523]
[1642614804087,11.1427,137.77,137.68,485.85038489]
[1642614805087,11.1427,137.77,137.69,42.45426841]
[1642614811695,10.8927,137.77,137.69,42.45426841]
[1642614812094,10.8927,137.77,137.68,485.85038489]
[1642614812999,0.25,137.76,137.68,485.85038489]
[1642614813196,0.25,137.76,137.69,36.18893066]
[1642614813997,10.8927,137.77,137.69,36.18893066]
[1642614814595,11.1437,137.76,137.69,36.18893066]
[1642614814794,11.1437,137.76,137.68,485.85038489]
[1642614815896,11.1437,137.76,137.69,42.12040548]
[1642614817198,11.1437,137.76,137.68,485.85038489]
[1642614818200,11.1437,137.76,137.68,527.55680854]
[1642614818600,11.1437,137.76,137.68,485.85038489]
[1642614819500,11.1437,137.76,137.69,42.38286158]
[1642614819902,10.8937,137.76,137.69,42.38286158]
[1642614820303,12.93523843,137.78,137.69,42.38286158]
[1642614820502,2.04303843,137.78,137.69,55.75686158]
[1642614820704,2.04303843,137.8,137.7,0.25]
[1642614820902,2.04303843,137.8,137.72,40.11144266]
[1642614821303,49.72673843,137.81,137.72,40.11144266]
[1642614822701,0.25,137.8,137.72,40.11144266]
[1642614823103,2.29303843,137.8,137.72,40.11144266]
[1642614823503,49.72673843,137.81,137.72,40.11144266]
[1642614823703,12.93273843,137.81,137.72,51.00084266]
[1642614823903,10.8897,137.81,137.72,61.47084266]
[1642614824110,2.04303843,137.82,137.72,61.47084266]
[1642614824708,0.25,137.81,137.72,61.47084266]
[1642614827025,10.8884,137.82,137.73,0.25]
[1642614827225,10.8884,137.82,137.72,61.47084266]
[1642614828742,0.25,137.81,137.72,61.47084266]
[1642614828940,11.1396,137.81,137.72,61.47084266]
[1642614829344,11.1396,137.81,137.72,50.58144266]
[1642614829742,11.1396,137.81,137.72,10.47]
[1642614830744,11.1396,137.81,137.72,54.399999]
[1642614831643,11.1396,137.81,137.72,10.47]
[1642614833645,11.1396,137.81,137.72,56.36709931]
[1642614833844,11.1396,137.81,137.72,10.47]
[1642614836065,13.18263843,137.81,137.72,10.47]
[1642614836360,13.18263843,137.81,137.69,10.47]
[1642614836361,86.15263843,137.81,137.69,10.47]
[1642614837160,86.15263843,137.81,137.7,43.54393514]
[1642614838660,13.18263843,137.81,137.7,43.54393514]
[1642614838892,2.04303843,137.8,137.7,43.54393514]
[1642614839065,10.8911,137.79,137.7,54.43503514]
[1642614839661,38.34593843,137.82,137.7,54.43503514]
[1642614839863,2.04303843,137.82,137.7,54.43503514]
[1642614840062,2.04303843,137.82,137.71,10.72]
[1642614840463,10.8894,137.81,137.72,10.889]
[1642614840664,10.8894,137.81,137.73,35.03856714]
[1642614840863,10.8894,137.81,137.73,35.28856714]
[1642614841065,49.7591,137.83,137.73,35.03856714]
[1642614841264,2.04303843,137.84,137.73,35.03856714]
[1642614841663,0.25,137.83,137.73,35.03856714]
[1642614842465,10.8878,137.83,137.74,0.25]
[1642614842663,10.8878,137.83,137.73,35.03856714]
[1642614843465,12.93083843,137.83,137.73,35.03856714]
[1642614843865,0.25,137.82,137.71,10.47]
[1642614844064,10.8906,137.8,137.71,21.3597]
[1642614845064,10.8906,137.8,137.72,39.55901964]
[1642614845266,11.1385,137.82,137.72,50.44781964]
[1642614846067,11.1385,137.82,137.73,10.47]
[1642614846267,10.8885,137.82,137.73,10.47]
[1642614847471,10.8885,137.82,137.75,35.08805838]
[1642614848071,26.21463843,137.84,137.75,35.08805838]
[1642614848273,0.25,137.83,137.75,35.08805838]
[1642614848871,37.10163843,137.84,137.75,35.08805838]
[1642614849472,37.10163843,137.84,137.73,10.47]
[1642614849680,2.04303843,137.83,137.71,12.10270594]
[1642614849877,10.8914,137.8,137.71,12.10270594]
[1642614850074,10.8914,137.8,137.71,10.47]
[1642614850274,0.25,137.79,137.71,10.47]
[1642614850475,8.80903843,137.81,137.71,50.68445216]
[1642614850676,0.25,137.8,137.71,50.68445216]
[1642614850874,2.04303843,137.81,137.71,50.68445216]
[1642614851077,2.04303843,137.82,137.72,0.25]
[1642614851274,0.25,137.81,137.72,0.25]
[1642614851478,0.25,137.81,137.71,52.3171581]
[1642614851679,0.25,137.81,137.71,50.68445216]
[1642614851879,2.04303843,137.82,137.71,50.68445216]
[1642614852080,2.04303843,137.82,137.72,0.25]
[1642614852277,25.31673843,137.83,137.72,0.25]
[1642614852480,11.1392,137.81,137.72,11.1388]
[1642614852880,25.31673843,137.83,137.72,11.1388]
[1642614853080,2.04303843,137.83,137.72,11.1388]
[1642614853281,26.21463843,137.84,137.74,44.34668876]
[1642614853481,26.21463843,137.84,137.74,54.81668876]
[1642614853685,26.21463843,137.84,137.75,10.8863]
[1642614854112,2.04303843,137.84,137.75,10.8863]
[1642614855515,12.92953843,137.84,137.75,10.8863]
[1642614855916,10.8865,137.84,137.75,10.8863]
[1642614856820,2.04303843,137.85,137.75,10.8863]
[1642614857025,2.04303843,137.86,137.77,10.8844]
[1642614857217,14.47700915,137.89,137.78,47.8875764]
[1642614857218,2.04303843,137.87,137.78,47.8875764]
[1642614858319,2.04303843,137.87,137.78,58.7711764]
[1642614858518,2.04303843,137.87,137.79,0.25]
[1642614858718,2.04303843,137.88,137.78,47.8875764]
[1642614859121,0.25,137.87,137.78,47.8875764]
[1642614859518,0.25,137.87,137.77,10.8838]
[1642614860523,10.8843,137.87,137.78,43.75546057]
[1642614860718,10.8843,137.87,137.79,0.25]
[1642614860920,2.04303843,137.89,137.78,54.63866057]
[1642614861118,2.04303843,137.89,137.78,127.60866057]
[1642614861319,2.04303843,137.89,137.79,0.25]
[1642614861520,2.04303843,137.89,137.78,43.75546057]
[1642614861722,12.92483843,137.9,137.79,0.25]
[1642614861924,12.92483843,137.9,137.78,43.75546057]
[1642614861925,2.04303843,137.89,137.78,43.75546057]
[1642614862321,0.25,137.88,137.78,43.75546057]
[1642614862522,0.25,137.89,137.78,43.75546057]
[1642614862722,12.92483843,137.9,137.78,43.75546057]